fUSD/lending_fUSD_20260226
["ID","MTS","AMOUNT","RATE_DAILY","PERIOD"]
[406683295,1772075440622,-150.0,8.219e-05,2]
[406683296,1772075440632,-154.83757938,8.219e-05,2]
[406683297,1772075440641,-150.0,8.219e-05,2]
[406683298,1772075440651,-152.67062338,8.219e-05,2]
[406683299,1772075440660,-500.0,8.219e-05,2]
[406683300,1772075440669,-500.0,8.219e-05,2]
[406683301,1772075440679,-150.0,8.274e-05,2]
[406683302,1772075440688,-150.0,8.274e-05,2]
[406683303,1772075440697,-150.0,8.274e-05,2]
[406683304,1772075440707,-150.0,8.274e-05,2]
[406683305,1772075440717,-258.96996012,8.274e-05,2]
[406683306,1772075440726,-574.74754567,8.274e-05,2]
[406683307,1772075440735,-150.0,8.274e-05,2]
[406683308,1772075440745,-150.0,8.274e-05,2]
[406683309,1772075440755,-210.79603747,8.274e-05,2]
[406683310,1772075440764,-500.0,8.274e-05,2]
[406683311,1772075440774,-500.0,8.274e-05,2]
[406683312,1772075440784,-150.0,8.274e-05,2]
[406683313,1772075440793,-500.0,8.274e-05,2]
[406683314,1772075440802,-500.0,8.274e-05,2]
[406683315,1772075440812,-150.0,8.274e-05,2]
[406683316,1772075440821,-150.0,8.274e-05,2]
[406683317,1772075440831,-150.0,8.274e-05,2]
[406683318,1772075440841,-500.0,8.274e-05,2]
[406683319,1772075440850,-287.38563793,8.329e-05,2]
[406683320,1772075440860,-158.31265112,8.329e-05,2]
[406683321,1772075440869,-150.0,8.329e-05,2]
[406683322,1772075440879,-150.0,8.329e-05,2]
[406683323,1772075440888,-251.37506929,8.329e-05,2]
[406683324,1772075440899,-210.6018127,8.329e-05,2]
[406683325,1772075440908,-500.0,8.329e-05,2]
[406683326,1772075440917,-512.29524281,8.329e-05,2]
[406683327,1772075440927,-150.0,8.329e-05,2]
[406683328,1772075440937,-500.0,8.329e-05,2]
[406683329,1772075440946,-500.0,8.329e-05,2]
[406683330,1772075440956,-150.0,8.329e-05,2]
[406683331,1772075440965,-251.02541865,8.329e-05,2]
[406683332,1772075440975,-226.25199945,8.329e-05,2]
[406683333,1772075440985,-500.0,8.329e-05,2]
[406683334,1772075440995,-9773.11,8.372e-05,2]
[406683335,1772075441004,-150.0,8.383e-05,2]
[406683336,1772075441013,-150.0,8.383e-05,2]
[406683337,1772075441022,-500.0,8.383e-05,2]
[406683338,1772075441032,-258.9731701,8.383e-05,2]
[406683339,1772075441041,-500.0,8.383e-05,2]
[406683340,1772075441050,-500.0,8.383e-05,2]
[406683341,1772075441059,-150.0,8.383e-05,2]
[406683342,1772075441068,-500.0,8.383e-05,2]
[406683343,1772075441077,-191.4720797,8.438e-05,2]
[406683344,1772075441085,-500.0,8.438e-05,2]
[406683345,1772075441095,-500.0,8.438e-05,2]
[406683346,1772075441104,-500.0,8.438e-05,2]
[406683347,1772075441114,-243.51213349,8.438e-05,2]
[406683348,1772075441123,-500.0,8.438e-05,2]
[406683349,1772075441132,-500.0,8.493e-05,2]
[406683350,1772075441141,-500.0,8.493e-05,2]
[406683351,1772075441150,-500.0,8.493e-05,2]
[406683352,1772075441159,-500.0,8.493e-05,2]
[406683353,1772075441168,-500.0,8.493e-05,2]
[406683354,1772075441178,-500.0,8.548e-05,2]
[406683355,1772075441188,-154.51645155,8.548e-05,2]
[406683356,1772075441198,-500.0,8.548e-05,2]
[406683357,1772075441207,-515.01044141,8.548e-05,2]
[406683358,1772075441217,-500.0,8.603e-05,2]
[406683359,1772075441226,-500.0,8.603e-05,2]
[406683360,1772075441236,-500.0,8.657e-05,2]
[406683361,1772075441246,-500.0,8.657e-05,2]
[406683362,1772075441255,-458.85187211,8.712e-05,2]
[406683363,1772075441264,-500.0,8.712e-05,2]
[406683364,1772075441274,-500.0,8.767e-05,2]
[406683365,1772075441283,-503.15080927,8.767e-05,2]
[406683366,1772075441293,-500.0,8.808e-05,2]
[406683367,1772075441302,-500.0,8.822e-05,2]
[406683368,1772075441311,-500.0,8.877e-05,2]
[406683369,1772075441482,-250.0,8.91e-05,2]
[406683370,1772075441492,-233.07874525,8.931e-05,2]
[406683371,1772075441504,-3292.0,9.022e-05,2]
[406683372,1772075441513,-9999.99,9.67e-05,2]
[406683373,1772075441523,-4609.0,9.924e-05,2]
[406683374,1772075441532,-23740.0,0.0001,2]
[406683375,1772075441541,-224.83939756,0.0001,2]
[406683376,1772075441552,-151.0,0.0001,2]
[406683377,1772075441561,-151.0,0.0001,2]
[406683378,1772075441571,-151.0,0.0001,2]
[406683379,1772075441581,-151.0,0.0001,2]
[406683380,1772075441591,-151.0,0.0001,2]
[406683381,1772075441600,-151.0,0.0001,2]
[406683382,1772075441610,-151.0,0.0001,2]
[406683383,1772075441622,-151.0,0.0001,2]
[406683384,1772075441631,-151.0,0.0001,2]
[406683385,1772075441640,-151.0,0.0001,2]
[406683386,1772075441649,-151.0,0.0001,2]
[406683387,1772075441658,-151.0,0.0001,2]
[406683388,1772075441668,-151.0,0.0001,2]
[406683389,1772075441677,-151.0,0.0001,2]
[406683390,1772075441687,-151.0,0.0001,2]
[406683391,1772075441696,-151.0,0.0001,2]
[406683392,1772075441705,-151.0,0.0001,2]
[406683393,1772075441715,-151.0,0.0001,2]
[406683394,1772075441724,-151.0,0.0001,2]
[406683395,1772075441734,-153.4251829,0.0001,2]
[406683396,1772075441744,-151.0,0.0001,2]
[406683397,1772075441753,-151.0,0.0001,2]
[406683398,1772075441762,-151.0,0.0001,2]
[406683399,1772075441773,-151.0,0.0001,2]
[406683400,1772075441783,-151.0,0.0001,2]
[406683401,1772075441794,-151.0,0.0001,2]
[406683402,1772075441803,-151.0,0.0001,2]
[406683403,1772075441814,-151.0,0.0001,2]
[406683404,1772075441825,-151.0,0.0001,2]
[406683405,1772075441835,-172.22478143,0.0001,2]
[406683406,1772075441844,-500.0,0.0001,2]
[406683407,1772075441854,-500.0,0.0001,2]
[406683408,1772075441863,-500.0,0.0001,2]
[406683409,1772075441872,-530.7269194,0.0001,2]
[406683410,1772075441882,-167.86555459,0.0001,2]
[406683411,1772075441891,-4296.31734008,0.00010038,2]
[406683412,1772075441901,-164.34,0.00010221,2]
[406683413,1772075441910,-5531.0,0.000103,3]
[406683414,1772075441919,-500.0,0.000103,2]
[406683415,1772075441929,-518.88437853,0.000103,2]
[406683416,1772075441939,-515.09383157,0.000103,2]
[406683417,1772075441948,-500.0,0.000103,2]
[406683418,1772075441958,-739.84545781,0.000103,2]
[406683419,1772075441967,-587.30475258,0.000103,2]
[406683420,1772075441976,-507.62892381,0.00010544,2]
[406683421,1772075441985,-5531.0,0.000107,5]
[406683422,1772075441994,-465.30086276,0.00010867,2]
[406683423,1772075442003,-5411.08120875,0.000109,2]
[406683424,1772075442012,-5411.08120869,0.000109,2]
[406683425,1772075442022,-5411.08120869,0.000109,2]
[406683426,1772075442031,-1819.0,0.00010917,2]
[406683427,1772075442041,-166.66,0.00010959,2]
[406683428,1772075442050,-3643.09,0.00010959,2]
[406683429,1772075442060,-166.66,0.00011068,2]
[406683430,1772075442071,-3008.21306832,0.00011099,2]
[406683431,1772075442082,-3008.21306824,0.00011099,2]
[406683432,1772075442092,-3008.21306824,0.00011099,2]
[406683433,1772075442102,-3008.21306824,0.00011099,2]
[406683434,1772075442114,-18457.9110656,0.00011099,2]
[406683435,1772075442123,-18457.91106556,0.00011099,2]
[406683436,1772075442134,-18457.91106556,0.00011099,2]
[406683437,1772075442143,-18457.91106556,0.00011099,2]
[406683438,1772075442155,-7376.46114407,0.00011105,2]
[406683439,1772075442165,-166.66,0.00011178,2]
[406683440,1772075442176,-166.66,0.00011288,2]
[406683441,1772075442186,-166.66,0.00011397,2]
[406683442,1772075442196,-5411.08120869,0.00011498,2]
[406683443,1772075442208,-166.66,0.00011507,2]
[406683444,1772075442218,-3008.21306824,0.00011676,2]
[406683445,1772075442228,-18457.91106556,0.00011733,2]
[406683446,1772075442238,-152.0,0.00011734,3]
[406683447,1772075442248,-500.0,0.00011918,2]
[406683448,1772075442258,-152.0,0.00011969,4]
[406683449,1772075442267,-152.0,0.00012204,5]
[406683450,1772075442276,-224.83939755,0.0001235,2]
[406683451,1772075442286,-152.0,0.00012439,6]
[406683452,1772075442296,-152.0,0.00012674,7]
[406683453,1772075442305,-500.0,0.0001289,2]
[406683454,1772075442314,-501.84617308,0.0001289,2]
[406683455,1772075442324,-500.0,0.0001289,2]
[406683456,1772075442333,-500.0,0.0001289,2]
[406683457,1772075442342,-500.0,0.0001289,2]
[406683458,1772075442352,-501.93276983,0.0001289,2]
[406683459,1772075442361,-500.0,0.0001289,2]
[406683460,1772075442370,-500.0,0.0001289,2]
[406683461,1772075442383,-500.0,0.0001289,2]
[406683462,1772075442392,-500.0,0.0001289,2]
[406683463,1772075442401,-500.0,0.0001289,2]
[406683464,1772075442410,-514.5742252,0.0001289,2]
[406683465,1772075442422,-506.48924267,0.0001289,2]
[406683466,1772075442431,-517.56895491,0.0001289,2]
[406683467,1772075442441,-152.0,0.00012909,8]
[406683468,1772075442451,-3008.21306824,0.0001292,2]
[406683469,1772075442461,-18457.91106556,0.00012967,2]
[406683470,1772075442470,-5628.56477834,0.00013,2]
[406683471,1772075442480,-5411.08120869,0.00013098,2]
[406683472,1772075442490,-152.0,0.00013145,9]
[406683473,1772075442500,-152.0,0.0001338,10]
[406683474,1772075442510,-2698.85736045,0.0001358,2]
[406683475,1772075442519,-152.0,0.00013615,11]
[406683476,1772075442530,-500.0,0.00013698,2]
[406683477,1772075442539,-500.0,0.00013698,2]
[406683478,1772075442549,-500.0,0.00013698,2]
[406683479,1772075442558,-500.0,0.00013698,2]
[406683480,1772075442567,-500.0,0.00013698,2]
[406683481,1772075442576,-500.0,0.00013698,2]
[406683482,1772075442586,-500.0,0.00013698,2]
[406683483,1772075442595,-500.0,0.00013698,2]
[406683484,1772075442604,-500.0,0.00013698,2]
[406683485,1772075442613,-500.0,0.00013698,2]
[406683486,1772075442623,-500.0,0.00013698,2]
[406683487,1772075442632,-500.0,0.00013698,2]
[406683488,1772075442640,-500.0,0.00013698,2]
[406683489,1772075442648,-500.0,0.00013698,2]
[406683490,1772075442657,-500.0,0.00013698,2]
[406683491,1772075442666,-500.0,0.00013698,2]
[406683492,1772075442675,-500.0,0.00013698,2]
[406683493,1772075442684,-405.62075362,0.00013698,2]
[406683494,1772075442694,-500.0,0.00013698,2]
[406683495,1772075442703,-500.0,0.00013698,2]
[406683496,1772075442712,-500.0,0.00013698,2]
[406683497,1772075442722,-368.2260392,0.00013698,2]
[406683498,1772075442731,-500.0,0.00013698,2]
[406683499,1772075442740,-500.0,0.00013698,2]
[406683500,1772075442749,-500.0,0.00013698,2]
[406683501,1772075442759,-500.0,0.00013698,2]
[406683502,1772075442768,-585.34193517,0.00013698,2]
[406683504,1772075442777,-500.0,0.00013698,2]
[406683505,1772075442786,-500.0,0.00013698,2]
[406683506,1772075442799,-500.0,0.00013698,2]
[406683507,1772075442808,-500.0,0.00013698,2]
[406683508,1772075442817,-409.20397161,0.00013698,2]
[406683509,1772075442826,-500.0,0.00013698,2]
[406683510,1772075442836,-500.0,0.00013698,2]
[406683511,1772075442846,-500.0,0.00013698,2]
[406683512,1772075442856,-500.0,0.00013698,2]
[406683513,1772075442867,-500.0,0.00013698,2]
[406683514,1772075442876,-500.0,0.00013698,2]
[406683515,1772075442886,-500.0,0.00013698,2]
[406683516,1772075442896,-500.0,0.00013698,2]
[406683517,1772075442905,-500.0,0.00013698,2]
[406683518,1772075442915,-500.0,0.00013698,2]
[406683519,1772075442925,-500.0,0.00013698,2]
[406683520,1772075442935,-500.0,0.00013698,2]
[406683521,1772075442944,-500.0,0.00013698,2]
[406683522,1772075442954,-500.0,0.00013698,2]
[406683523,1772075442964,-500.0,0.00013698,2]
[406683524,1772075442973,-500.0,0.00013698,2]
[406683525,1772075442982,-500.0,0.00013698,2]
[406683526,1772075442992,-500.0,0.00013698,2]
[406683527,1772075443002,-218.52098897,0.00013698,2]
[406683528,1772075443012,-500.0,0.00013698,2]
[406683529,1772075443022,-500.0,0.00013698,2]
[406683530,1772075443033,-500.0,0.00013698,2]
[406683531,1772075443043,-268.69007129,0.00013698,2]
[406683532,1772075443052,-500.0,0.00013698,2]
[406683533,1772075443061,-500.0,0.00013698,2]
[406683534,1772075443071,-500.0,0.00013698,2]
[406683535,1772075443081,-500.0,0.00013698,2]
[406683536,1772075443090,-500.0,0.00013698,2]
[406683537,1772075443101,-500.0,0.00013698,2]
[406683538,1772075443110,-500.0,0.00013698,2]
[406683539,1772075443120,-500.0,0.00013698,2]
[406683540,1772075443130,-500.0,0.00013698,2]
[406683541,1772075443140,-500.0,0.00013698,2]
[406683542,1772075443150,-269.57915282,0.00013698,2]
[406683543,1772075443160,-500.0,0.00013698,2]
[406683544,1772075443171,-500.0,0.00013698,2]
[406683545,1772075443181,-467.36158262,0.00013698,2]
[406683546,1772075443191,-500.0,0.00013698,2]
[406683547,1772075443201,-500.0,0.00013698,2]
[406683548,1772075443211,-568.60354988,0.00013698,2]
[406683549,1772075443221,-7383.73,0.00013699,2]
[406683550,1772075443230,-271.25,0.00013699,2]
[406683551,1772075443240,-226.04,0.00013699,2]
[406683552,1772075443252,-188.37,0.00013699,2]
[406683553,1772075443262,-156.97,0.00013699,2]
[406683554,1772075443272,-784.9,0.00013699,2]
[406683555,1772075443281,-500.0,0.00013699,2]
[406683556,1772075443291,-500.0,0.00013699,2]
[406683557,1772075443300,-500.0,0.00013699,2]
[406683558,1772075443310,-161.16677008,0.00013699,2]
[406683559,1772075443319,-500.0,0.00013699,2]
[406683560,1772075443329,-279.20657511,0.00013699,2]
[406683561,1772075443338,-164.03684488,0.00013699,2]
[406683562,1772075443348,-500.0,0.00013699,2]
[406683563,1772075443358,-620.71882978,0.00013699,2]
[406683564,1772075443367,-500.0,0.00013699,2]
[406683565,1772075443378,-500.0,0.00013699,2]
[406683567,1772075443389,-500.0,0.00013699,2]
[406683568,1772075443398,-500.0,0.00013699,2]
[406683570,1772075443407,-160.93544201,0.00013699,2]
[406683572,1772075443418,-161.18283823,0.00013699,2]
[406683574,1772075443427,-209.72063022,0.00013699,2]
[406683575,1772075443436,-500.0,0.00013699,2]
[406683576,1772075443446,-500.0,0.00013699,2]
[406683577,1772075443457,-500.0,0.00013699,2]
[406683578,1772075443467,-500.0,0.00013699,2]
[406683579,1772075443476,-308.72210557,0.00013699,2]
[406683580,1772075443485,-500.0,0.00013699,2]
[406683581,1772075443494,-337.83752108,0.00013699,2]
[406683582,1772075443503,-500.0,0.00013699,2]
[406683583,1772075443513,-500.0,0.00013699,2]
[406683584,1772075443522,-500.0,0.00013699,2]
[406683585,1772075443532,-500.0,0.00013699,2]
[406683586,1772075443541,-500.0,0.00013699,2]
[406683587,1772075443550,-335.7324919,0.00013699,2]
[406683588,1772075443560,-500.0,0.00013699,2]
[406683589,1772075443570,-500.0,0.00013699,2]
[406683590,1772075443579,-500.0,0.00013699,2]
[406683591,1772075443689,-500.0,0.00013699,2]
[406683592,1772075443712,-500.0,0.00013699,2]
[406683593,1772075443723,-500.0,0.00013699,2]
[406683594,1772075443732,-500.0,0.00013699,2]
[406683595,1772075443742,-162.12539331,0.00013699,2]
[406683596,1772075443751,-500.0,0.00013699,2]
[406683597,1772075443761,-160.2268493,0.00013699,2]
[406683598,1772075443771,-500.0,0.00013699,2]
[406683599,1772075443781,-500.0,0.00013699,2]
[406683600,1772075443789,-500.0,0.00013699,2]
[406683601,1772075443799,-500.0,0.00013699,2]
[406683602,1772075443809,-500.0,0.00013699,2]
[406683603,1772075443818,-500.0,0.00013699,2]
[406683604,1772075443828,-163.81123118,0.00013699,2]
[406683605,1772075443838,-500.0,0.00013699,2]
[406683606,1772075443848,-500.0,0.00013699,2]
[406683607,1772075443858,-524.45332011,0.00013699,2]
[406683608,1772075443867,-500.0,0.00013699,2]
[406683609,1772075443877,-500.0,0.00013699,2]
[406683610,1772075443887,-500.0,0.00013699,2]
[406683611,1772075443896,-500.0,0.00013699,2]
[406683612,1772075443906,-500.0,0.00013699,2]
[406683613,1772075443915,-500.0,0.00013699,2]
[406683614,1772075443924,-500.0,0.00013699,2]
[406683615,1772075443934,-500.0,0.00013699,2]
[406683616,1772075443944,-500.0,0.00013699,2]
[406683617,1772075443954,-500.0,0.00013699,2]
[406683618,1772075443964,-500.0,0.00013699,2]
[406683619,1772075443974,-500.0,0.00013699,2]
[406683620,1772075443983,-500.0,0.00013699,2]
[406683621,1772075443992,-500.0,0.00013699,2]
[406683622,1772075444003,-500.0,0.00013699,2]
[406683623,1772075444012,-500.0,0.00013699,2]
[406683624,1772075444022,-500.0,0.00013699,2]
[406683625,1772075444031,-500.0,0.00013699,2]
[406683626,1772075444040,-152.0,0.0001385,12]
[406683627,1772075444050,-152.0,0.00014085,13]
[406683628,1772075444059,-261.864285,0.00014091,7]
[406683629,1772075444068,-3008.21306824,0.00014165,2]
[406683630,1772075444077,-18457.91106556,0.000142,2]
[406683631,1772075444086,-2288.77901783,0.0001421,7]
[406683632,1772075444096,-1000.0,0.00014247,2]
[406683633,1772075444104,-1000.0,0.00014247,2]
[406683634,1772075444114,-1000.0,0.00014247,2]
[406683635,1772075444123,-1008.73606544,0.00014247,2]
[406683636,1772075444133,-1000.0,0.00014247,2]
[406683637,1772075444142,-1000.77929008,0.00014247,2]
[406683638,1772075444151,-1002.48322638,0.00014247,2]
[406683639,1772075444160,-1000.0,0.00014247,2]
[406683640,1772075444170,-1000.92893184,0.00014247,2]
[406683641,1772075444179,-468.28282852,0.00014247,2]
[406683642,1772075444188,-1009.34294002,0.00014247,2]
[406683643,1772075444197,-351.97959674,0.00014247,2]
[406683644,1772075444207,-1001.84370953,0.00014247,2]
[406683645,1772075444217,-1001.17238446,0.00014247,2]
[406683646,1772075444226,-992.81354466,0.00014247,2]
[406683647,1772075444235,-503.4329372,0.00014247,2]
[406683648,1772075444245,-1001.32593476,0.00014247,2]
[406683649,1772075444254,-1001.76849561,0.00014247,2]
[406683650,1772075444264,-1001.4270061,0.00014247,2]
[406683651,1772075444277,-1003.43569422,0.00014247,2]
[406683652,1772075444286,-604.53668535,0.00014247,2]
[406683653,1772075444295,-1003.24758094,0.00014247,2]
[406683654,1772075444305,-176.13031917,0.00014247,2]
[406683655,1772075444314,-1000.87913707,0.00014247,2]
[406683656,1772075444323,-1002.10318534,0.00014247,2]
[406683657,1772075444332,-1000.0,0.00014247,2]
[406683658,1772075444342,-185.75789258,0.00014247,2]
[406683659,1772075444351,-1001.13953676,0.00014247,2]
[406683660,1772075444360,-1001.07129304,0.00014247,2]
[406683661,1772075444370,-1001.81202346,0.00014247,2]
[406683662,1772075444382,-1003.77854516,0.00014247,2]
[406683663,1772075444390,-800.77489472,0.00014247,2]
[406683664,1772075444400,-1000.0,0.00014247,2]
[406683665,1772075444409,-380.66692773,0.00014247,2]
[406683666,1772075444419,-1001.36718097,0.00014247,2]
[406683667,1772075444428,-1001.12380707,0.00014247,2]
[406683668,1772075444437,-1001.29204001,0.00014247,2]
[406683669,1772075444447,-1000.0,0.00014247,2]
[406683670,1772075444458,-1002.34821316,0.00014247,2]
[406683671,1772075444467,-502.89642455,0.00014247,2]
[406683672,1772075444476,-1002.22507836,0.00014247,2]
[406683673,1772075444485,-1005.73275507,0.00014247,2]
[406683674,1772075444495,-501.26732063,0.00014247,2]
[406683675,1772075444504,-1001.21349906,0.00014247,2]
[406683676,1772075444513,-1000.0,0.00014247,2]
[406683677,1772075444523,-1000.0,0.00014247,2]
[406683678,1772075444532,-1000.0,0.00014247,2]
[406683679,1772075444542,-1001.6863577,0.00014247,2]
[406683680,1772075444551,-1002.06581507,0.00014247,2]
[406683681,1772075444561,-1002.2111982,0.00014247,2]
[406683682,1772075444571,-1000.0,0.00014247,2]
[406683683,1772075444580,-375.44426131,0.00014247,2]
[406683684,1772075444590,-1001.41900539,0.00014247,2]
[406683685,1772075444599,-500.83672935,0.00014302,2]
[406683686,1772075444608,-152.0,0.0001432,14]
[406683687,1772075444618,-7383.73,0.00014384,2]
[406683688,1772075444627,-180.0,0.00014399,2]
[406683689,1772075444636,-173.95657067,0.00014441,2]
[406683690,1772075444647,-160.0,0.00014441,2]
[406683691,1772075444657,-152.0,0.00014555,15]
[406683692,1772075444666,-151.0,0.00014634,2]
[406683693,1772075444676,-5411.08120869,0.00014699,2]
[406683694,1772075444685,-152.0,0.0001479,16]
[406683695,1772075444694,-1501.66913587,0.00014795,2]
[406683696,1772075444704,-1501.31398906,0.00014795,2]
[406683697,1772075444713,-1507.14480437,0.00014795,2]
[406683698,1772075444722,-1500.0,0.00014795,2]
[406683699,1772075444731,-276.67774061,0.00014795,2]
[406683700,1772075444740,-1043.57929262,0.00014795,2]
[406683701,1772075444750,-1092.89603598,0.00014795,2]
[406683702,1772075444759,-1500.0,0.00014795,2]
[406683703,1772075444769,-1217.27858116,0.00014795,2]
[406683704,1772075444778,-1500.0,0.00014795,2]
[406683705,1772075444787,-500.0,0.00014807,2]
[406683706,1772075444796,-567.8,0.00014807,2]
[406683707,1772075444806,-152.0,0.00015025,17]
[406683708,1772075444815,-7383.73,0.00015068,2]
[406683709,1772075444824,-164.34,0.00015072,2]
[406683710,1772075444834,-693.3919763,0.000151,2]
[406683711,1772075444843,-500.0,0.000151,2]
[406683712,1772075444853,-500.0,0.000151,2]
[406683713,1772075444863,-151.09270832,0.000151,2]
[406683714,1772075444872,-500.0,0.000151,2]
[406683715,1772075444882,-500.0,0.000151,2]
[406683716,1772075444892,-500.0,0.000151,2]
[406683717,1772075444901,-500.0,0.000151,2]
[406683718,1772075444911,-500.0,0.000151,2]
[406683719,1772075444920,-500.0,0.000151,2]
[406683720,1772075444930,-500.0,0.000151,2]
[406683721,1772075444939,-500.0,0.000151,2]
[406683722,1772075444949,-500.0,0.000151,2]
[406683723,1772075444959,-500.0,0.000151,2]
[406683724,1772075444968,-500.0,0.000151,2]
[406683725,1772075444978,-584.72359272,0.000151,2]
[406683726,1772075444988,-500.0,0.000151,2]
[406683727,1772075444999,-500.0,0.000151,2]
[406683728,1772075445009,-500.0,0.000151,2]
[406683729,1772075445019,-500.0,0.000151,2]
[406683730,1772075445029,-500.0,0.000151,2]
[406683731,1772075445039,-277.35679052,0.000151,2]
[406683732,1772075445049,-355.92353835,0.000151,2]
[406683733,1772075445059,-10039.86886893,0.0001512,2]
[406683734,1772075445068,-719.04747942,0.00015155,2]
[406683735,1772075445078,-745.65223616,0.0001521,2]
[406683736,1772075445088,-18151.59689486,0.00015247,2]
[406683737,1772075445098,-1310.02753916,0.00015247,2]
[406683738,1772075445108,-152.0,0.0001526,18]
[406683739,1772075445118,-773.2413689,0.00015265,2]
[406683740,1772075445127,-485.65,0.00015281,2]
[406683741,1772075445137,-150.0,0.00015296,2]
[406683742,1772075445146,-150.0,0.00015296,2]
[406683743,1772075445156,-150.0,0.00015296,2]
[406683744,1772075445166,-150.0,0.00015296,2]
[406683745,1772075445176,-150.0,0.00015296,2]
[406683746,1772075445186,-801.85129955,0.0001532,2]
[406683747,1772075445196,-2000.0,0.00015342,2]
[406683748,1772075445205,-1827.89337357,0.00015342,2]
[406683749,1772075445214,-2000.0,0.00015342,2]
[406683750,1772075445223,-16836.0820757,0.00015347,2]
[406683751,1772075445233,-404875.7825985,0.00015347,2]
[406683752,1772075445243,-4840.3161244,0.00015347,2]
[406683753,1772075445253,-17174.4285932,0.00015347,2]
[406683754,1772075445262,-194391.178534,0.00015347,2]
[406683755,1772075445272,-26632.6883639,0.00015347,2]
[406683756,1772075445282,-485.65,0.00015368,2]
[406683757,1772075445291,-831.51979763,0.00015375,2]
[406683758,1772075445301,-485.65,0.00015377,2]
[406683759,1772075445310,-500.0,0.00015395,2]
[406683760,1772075445320,-500.0,0.00015395,2]
[406683761,1772075445330,-500.0,0.00015395,2]
[406683762,1772075445339,-500.0,0.00015395,2]
[406683763,1772075445349,-200.0,0.00015396,2]
[406683764,1772075445358,-460.69560388,0.00015396,2]
[406683765,1772075445367,-151.0,0.00015396,2]
[406683766,1772075445380,-3008.21306824,0.0001541,2]
[406683767,1772075445390,-862.28603014,0.0001543,2]
[406683768,1772075445399,-18457.91106556,0.00015433,2]
[406683769,1772075445408,-485.65,0.00015459,2]
[406683770,1772075445419,-485.65,0.00015465,2]
[406683771,1772075445428,-152.0,0.00015481,24]
[406683772,1772075445437,-894.19061326,0.00015485,2]
[406683773,1772075445447,-152.0,0.00015495,19]
[406683774,1772075445457,-1000.0,0.00015507,2]
[406683775,1772075445466,-200.0,0.0001555,2]
[406683776,1772075445476,-485.65,0.00015552,2]
[406683777,1772075445485,-485.66086247,0.0001564,2]
[406683778,1772075445496,-200.0,0.00015647,2]
[406683779,1772075445505,-287.61899177,0.00015648,2]
[406683780,1772075445515,-152.0,0.00015661,25]
[406683781,1772075445525,-1363.99,0.00015681,2]
[406683782,1772075445534,-200.0,0.00015705,2]
[406683783,1772075445547,-152.0,0.0001573,20]
[406683784,1772075445558,-7383.73,0.00015753,2]
[406683785,1772075445568,-152.0,0.00015841,26]
[406683786,1772075445577,-200.0,0.00015863,2]
[406683787,1772075445587,-2500.0,0.0001589,2]
[406683788,1772075445596,-2500.0,0.0001589,2]
[406683789,1772075445606,-1000.0,0.00015895,2]
[406683790,1772075445616,-152.0,0.00015965,21]
[406683791,1772075445625,-175.036731,0.00015996,7]
[406683792,1772075445745,-1090.2523289,0.00015997,2]
[406683793,1772075445755,-474.08053912,0.00016005,2]
[406683794,1772075445769,-152.0,0.0001602,27]
[406683795,1772075445779,-600.0,0.00016082,2]
[406683796,1772075445789,-7947.48,0.00016116,2]
[406683797,1772075445799,-6778.1057,0.00016166,2]
[406683798,1772075445810,-330.46278765,0.00016196,2]
[406683799,1772075445820,-152.0,0.000162,28]